[Event "Chessable English Womens-ch 2022"]
[Site "Kenilwoth"]
[Date "2022.05.20"]
[Round "3.4"]
[White "Dicen, Elis Denele"]
[Black "Oh, Julie"]
[Result "1/2-1/2"]
[ECO "A43"]
[WhiteElo "1635"]
[BlackElo "1373"]
[Annotator "NA RC COMBH"]
[PlyCount "82"]
[EventDate "2022.05.18"]
[EventType "swiss"]
[EventCountry "ENG"]
[SourceTitle "playchess.com"]
[Source "ChessBase"]
[SourceQuality "1"]
[TimeControl "5400+30"]

1. d4 {[%emt 0:00:03]} e6 {[%emt 0:00:12]} 2. Nf3 {[%emt 0:00:17]} c5 {[%emt 0:01:32]} 3. e3 {[%emt 0:00:55]} Nc6 {[%emt 0:09:23]} 4. b3 {[%emt 0:04:33]} a6 {[%emt 0:03:35]} 5. Bb2 {[%emt 0:01:40]} b5 {[%emt 0:04:26]} 6. Nbd2 {[%emt 0:02:53]} cxd4 {[%emt 0:03:38]} 7. exd4 {[%emt 0:00:28]} Nge7 {[%emt 0:03:43]} 8. Bd3 {[%emt 0:02:54]} Ng6 {[%emt 0:05:19]} 9. Bxg6 {[%emt 0:12:08]} hxg6 {[%emt 0:03:29]} 10. Qe2 {[%emt 0:03:32]} d5 {[%emt 0:07:39]} 11. a3 {[%emt 0:04:15]} Bb7 {[%emt 0:11:04]} 12. Ne5 {[%emt 0:04:17]} Nxe5 {[%emt 0:01:41]} 13. dxe5 {[%emt 0:00:37]} Bc5 {[%emt 0:11:13]} 14. Nf3 {[%emt 0:02:31]} Qc7 {[%emt 0:09:44]} 15. O-O {[%emt 0:02:53]} Qe7 {[%emt 0:03:03]} 16. Rfd1 {[%emt 0:08:12]} g5 {[%emt 0:06:30]} 17. b4 {[%emt 0:07:01]} Ba7 {[%emt 0:01:23]} 18. Bd4 {[%emt 0:03:33]} g4 {[%emt 0:01:46]} 19. Ne1 {[%emt 0:19:41]} Qh4 {[%emt 0:02:22]} 20. Qe3 {[%emt 0:04:21]} Bxd4 {[%emt 0:02:56]} 21. Rxd4 {[%emt 0:00:57]} Qxh2+ {[%emt 0:01:31]} 22. Kf1 {[%emt 0:00:44]} Rc8 {[%emt 0:02:13]} 23. Rxg4 {[%emt 0:03:18]} Rc4 {[%emt 0:01:07]} 24. Rxc4 {[%emt 0:04:19]} dxc4 {[%emt 0:00:37]} 25. Rd1 {[%emt 0:02:31]} Qh1+ {[%emt 0:01:07]} 26. Ke2 {[%emt 0:00:46]} Qh5+ {[%emt 0:01:03]} 27. f3 {[%emt 0:01:18]} Bd5 {[%emt 0:00:47]} 28. Rd4 {[%emt 0:00:57]} Qh6 {[%emt 0:00:38]} 29. Rf4 {[%emt 0:01:24]} Qg5 {[%emt 0:00:34]} 30. Rg4 {[%emt 0:00:48]} Qxe3+ {[%emt 0:00:24]} 31. Kxe3 {[%emt 0:00:07]} g6 {[%emt 0:00:29]} 32. f4 {[%emt 0:01:06]} Ke7 {[%emt 0:00:44]} 33. Kf2 {[%emt 0:00:40]} Rh5 {[%emt 0:00:27]} 34. c3 {[%emt 0:00:37]} Be4 {[%emt 0:00:24]} 35. Ke3 {[%emt 0:00:26]} Bd5 {[%emt 0:00:40]} 36. Rg3 {[%emt 0:00:40]} Rh1 {[%emt 0:00:26]} 37. Ke2 {[%emt 0:00:32]} Rh4 {[%emt 0:00:21]} 38. Ke3 {[%emt 0:00:21]} Rh1 {[%emt 0:00:12]} 39. Kf2 {[%emt 0:00:48]} Rh4 {[%emt 0:00:12]} 40. Ke3 {[%emt 0:00:13]} Rh1 {[%emt 0:00:08]} 41. Kf2 {[%emt 0:00:09]} Rh4 {[%emt 0:00:09]} 1/2-1/2

[Event "Chessable English Womens-ch 2022"]
[Site "Kenilwoth"]
[Date "2022.05.20"]
[Round "3.5"]
[White "Sengenberger, Sara"]
[Black "Mohan, Meghana"]
[Result "1-0"]
[ECO "B77"]
[WhiteElo "1435"]
[BlackElo "1613"]
[Annotator "NA RC COMBH"]
[PlyCount "77"]
[EventDate "2022.05.18"]
[EventType "swiss"]
[EventCountry "ENG"]
[SourceTitle "playchess.com"]
[Source "ChessBase"]
[SourceQuality "1"]
[TimeControl "5400+30"]

1. e4 {[%emt 0:00:03]} c5 {[%emt 0:00:06]} 2. Nf3 {[%emt 0:00:10]} Nc6 {[%emt 0:00:18]} 3. d4 {[%emt 0:00:14]} cxd4 {[%emt 0:00:06]} 4. Nxd4 {[%emt 0:00:06]} g6 {[%emt 0:00:08]} 5. Nc3 {[%emt 0:00:14]} Bg7 {[%emt 0:00:12]} 6. Be3 {[%emt 0:00:15]} Nf6 {[%emt 0:00:28]} 7. Bc4 {[%emt 0:00:20]} O-O {[%emt 0:00:38]} 8. Bb3 {[%emt 0:00:20]} d6 {[%emt 0:02:30]} 9. f3 {[%emt 0:00:24]} Qa5 {[%emt 0:03:59]} 10. Qd2 {[%emt 0:02:01]} Bd7 {[%emt 0:03:01]} 11. O-O-O {[%emt 0:02:17]} Qc7 {[%emt 0:06:52]} 12. h4 {[%emt 0:02:42]} Nxd4 {[%emt 0:06:31]} 13. Bxd4 {[%emt 0:00:34]} a5 {[%emt 0:05:37]} 14. Na4 {[%emt 0:13:26]} Bxa4 {[%emt 0:10:54]} 15. Bxa4 {[%emt 0:00:36]} Rfb8 {[%emt 0:06:00]} 16. Bb5 {[%emt 0:06:22]} a4 {[%emt 0:09:11]} 17. a3 {[%emt 0:01:31]} Ra5 {[%emt 0:03:29]} 18. Qb4 {[%emt 0:04:17]} Rba8 {[%emt 0:11:11]} 19. Rd3 {[%emt 0:01:55]} Nd7 {[%emt 0:04:44]} 20. Bxg7 {[%emt 0:13:44]} Kxg7 {[%emt 0:01:28]} 21. Bxd7 {[%emt 0:02:35]} Qxd7 {[%emt 0:00:39]} 22. Rc3 {[%emt 0:04:06]} Rb5 {[%emt 0:05:36]} 23. Qd4+ {[%emt 0:05:39]} f6 {[%emt 0:02:53]} 24. Rc4 {[%emt 0:08:05]} Rba5 {[%emt 0:04:27]} 25. Rb4 {[%emt 0:01:37]} b5 {[%emt 0:05:28]} 26. h5 {[%emt 0:01:28]} Qc7 {[%emt 0:01:20]} 27. hxg6 {[%emt 0:04:20]} hxg6 {[%emt 0:00:59]} 28. e5 {[%emt 0:01:23]} dxe5 {[%emt 0:01:55]} 29. Qh4 {[%emt 0:01:07]} Kf7 {[%emt 0:01:13]} 30. Qh7+ {[%emt 0:02:03]} Ke6 {[%emt 0:00:35]} 31. Qxg6 {[%emt 0:00:29]} Qc5 {[%emt 0:01:46]} 32. Rbh4 {[%emt 0:04:26]} Rc8 {[%emt 0:01:19]} 33. Rd1 {[%emt 0:01:01]} Qe3+ {[%emt 0:00:42]} 34. Kb1 {[%emt 0:00:26]} Qg5 {[%emt 0:00:33]} 35. Qe4 {[%emt 0:03:22]} Qxg2 {[%emt 0:00:28]} 36. Qd5+ {[%emt 0:14:52]} Kf5 {[%emt 0:01:14]} 37. Qe4+ {[%emt 0:00:00]} Ke6 {[%emt 0:00:00]} 38. Rh5 {[%emt 0:00:00]} Ra7 {[%emt 0:00:19]} 39. Qd5# {[%emt 0:00:00]} 1-0

[Event "Chessable English Womens-ch 2022"]
[Site "Kenilwoth"]
[Date "2022.05.20"]
[Round "4.1"]
[White "Subramanian, Anusha"]
[Black "Gamal, Alaa"]
[Result "1/2-1/2"]
[ECO "E61"]
[WhiteElo "1671"]
[BlackElo "1651"]
[Annotator "NA RC COMBH"]
[PlyCount "185"]
[EventDate "2022.05.18"]
[EventType "swiss"]
[EventCountry "ENG"]
[SourceTitle "playchess.com"]
[Source "ChessBase"]
[SourceQuality "1"]
[TimeControl "5400+30"]

1. d4 {[%emt 0:00:02]} Nf6 {[%emt 0:00:09]} 2. Nf3 {[%emt 0:00:07]} g6 {[%emt 0:01:22]} 3. c4 {[%emt 0:00:08]} Bg7 {[%emt 0:00:19]} 4. Nc3 {[%emt 0:00:09]} d6 {[%emt 0:00:18]} 5. e3 {[%emt 0:01:30]} O-O {[%emt 0:01:04]} 6. Bd3 {[%emt 0:00:30]} c5 {[%emt 0:00:30]} 7. O-O {[%emt 0:00:30]} Bg4 {[%emt 0:00:30]} 8. h3 {[%emt 0:00:30]} Bxf3 {[%emt 0:00:30]} 9. Qxf3 {[%emt 0:00:30]} Nc6 {[%emt 0:00:30]} 10. d5 {[%emt 0:00:30]} Ne5 {[%emt 0:00:30]} 11. Qe2 {[%emt 0:00:30]} Rb8 {[%emt 0:00:30]} 12. Bd2 {[%emt 0:00:30]} Nxd3 {[%emt 0:00:30]} 13. Qxd3 {[%emt 0:00:30]} a6 {[%emt 0:00:30]} 14. a4 {[%emt 0:00:30]} Ne8 {[%emt 0:00:30]} 15. Rab1 {[%emt 0:00:30]} Qc7 {[%emt 0:00:30]} 16. Rfc1 {[%emt 0:00:30]} Nf6 {[%emt 0:00:30]} 17. Ne4 {[%emt 0:00:30]} Nxe4 {[%emt 0:00:30]} 18. Qxe4 {[%emt 0:00:30]} b5 {[%emt 0:00:30]} 19. axb5 {[%emt 0:00:30]} axb5 {[%emt 0:00:30]} 20. b4 {[%emt 0:00:30]} bxc4 {[%emt 0:00:30]} 21. Qxc4 {[%emt 0:00:30]} Qa7 {[%emt 0:00:30]} 22. bxc5 {[%emt 0:00:30]} Rxb1 {[%emt 0:00:30]} 23. Rxb1 {[%emt 0:00:30]} dxc5 {[%emt 0:00:30]} 24. Rc1 {[%emt 0:00:30]} Rc8 {[%emt 0:00:30]} 25. Qb5 {[%emt 0:00:30]} Qa2 {[%emt 0:00:30]} 26. Qb7 {[%emt 0:00:30]} Rd8 {[%emt 0:00:30]} 27. Be1 {[%emt 0:00:30]} Qa3 {[%emt 0:00:30]} 28. Qxe7 {[%emt 0:00:30]} Rxd5 {[%emt 0:00:30]} 29. Qe8+ {[%emt 0:00:30]} Bf8 {[%emt 0:00:30]} 30. Rb1 {[%emt 0:00:30]} Kg7 {[%emt 0:00:30]} 31. e4 {[%emt 0:00:30]} Rd3 {[%emt 0:00:30]} 32. e5 {[%emt 0:00:30]} Qa7 {[%emt 0:00:30]} 33. Rb8 {[%emt 0:00:30]} Qe7 {[%emt 0:00:30]} 34. Qxe7 {[%emt 0:00:30]} Bxe7 {[%emt 0:00:30]} 35. Rb7 {[%emt 0:00:30]} Kf8 {[%emt 0:00:30]} 36. Rc7 {[%emt 0:00:30]} Rd1 {[%emt 0:00:30]} 37. Kf1 {[%emt 0:00:30]} Ke8 {[%emt 0:00:30]} 38. Ke2 {[%emt 0:00:30]} Rb1 {[%emt 0:00:30]} 39. Bc3 {[%emt 0:00:30]} Rc1 {[%emt 0:00:30]} 40. Bd2 {[%emt 0:00:30]} Rc2 {[%emt 0:00:30]} 41. Kd3 {[%emt 0:00:30]} Ra2 {[%emt 0:00:30]} 42. Be3 {[%emt 0:00:30]} Ra5 {[%emt 0:00:30]} 43. Kc4 {[%emt 0:00:30]} Ra4+ {[%emt 0:00:30]} 44. Kd5 {[%emt 1:27:56]} Kd8 {[%emt 1:18:30]} 45. Rc6 {[%emt 0:00:30]} Kd7 {[%emt 0:00:30]} 46. Bxc5 {[%emt 0:00:30]} Bxc5 {[%emt 0:00:30]} 47. Rxc5 {[%emt 0:00:30]} Ra2 {[%emt 0:00:30]} 48. g4 {[%emt 0:00:30]} Rxf2 {[%emt 0:00:30]} 49. Ra5 {[%emt 0:00:30]} Rh2 {[%emt 0:00:30]} 50. Ra7+ {[%emt 0:00:30]} Ke8 {[%emt 0:00:30]} 51. Ra3 {[%emt 0:00:30]} Rd2+ {[%emt 0:00:30]} 52. Ke4 {[%emt 0:00:30]} Ke7 {[%emt 0:00:30]} 53. Kf4 {[%emt 0:00:30]} Re2 {[%emt 0:00:30]} 54. Ra5 {[%emt 0:00:30]} h6 {[%emt 0:00:30]} 55. Ra7+ {[%emt 0:00:30]} Ke6 {[%emt 0:00:30]} 56. Ra6+ {[%emt 0:00:30]} Kd5 {[%emt 0:00:30]} 57. Rd6+ {[%emt 0:00:30]} Kc5 {[%emt 0:00:30]} 58. Rd7 {[%emt 0:00:30]} g5+ {[%emt 0:00:30]} 59. Kf3 {[%emt 0:00:30]} Rxe5 {[%emt 0:00:30]} 60. Rxf7 {[%emt 0:00:30]} Re6 {[%emt 0:00:30]} 61. Rd7 {[%emt 0:00:30]} Kc4 {[%emt 0:00:30]} 62. Rc7+ {[%emt 0:00:30]} Kd3 {[%emt 0:00:30]} 63. Rd7+ {[%emt 0:00:30]} Kc2 {[%emt 0:00:30]} 64. Kg3 {[%emt 0:00:30]} Re3+ {[%emt 0:00:30]} 65. Kg2 {[%emt 0:00:30]} Re6 {[%emt 0:00:30]} 66. Kg3 {[%emt 0:00:30]} Kc3 {[%emt 0:00:30]} 67. Kf3 {[%emt 0:00:30]} Kc4 {[%emt 0:00:30]} 68. Kf2 {[%emt 0:00:30]} Kc5 {[%emt 0:00:30]} 69. Kf3 {[%emt 0:00:30]} Rf6+ {[%emt 0:00:30]} 70. Ke4 {[%emt 0:00:30]} Rf4+ {[%emt 0:00:30]} 71. Ke3 {[%emt 0:00:30]} Ra4 {[%emt 0:00:30]} 72. Kf3 {[%emt 0:00:30]} Ra3+ {[%emt 0:00:30]} 73. Kg2 {[%emt 0:00:30]} Ra6 {[%emt 0:00:30]} 74. Kg3 {[%emt 0:00:30]} Kc6 {[%emt 0:00:30]} 75. Rf7 {[%emt 0:00:30]} Kd5 {[%emt 0:00:30]} 76. Rd7+ {[%emt 0:00:30]} Ke5 {[%emt 0:00:30]} 77. Re7+ {[%emt 0:00:30]} Kd4 {[%emt 0:00:30]} 78. Rd7+ {[%emt 0:00:30]} Ke3 {[%emt 0:00:30]} 79. Re7+ {[%emt 0:00:30]} Kd2 {[%emt 0:00:30]} 80. Rd7+ {[%emt 0:00:30]} Ke1 {[%emt 0:00:30]} 81. Kf3 {[%emt 0:00:30]} Ra3+ {[%emt 0:00:30]} 82. Kg2 {[%emt 0:00:30]} Ra2+ {[%emt 0:00:30]} 83. Kg3 {[%emt 0:00:30]} Ra3+ {[%emt 0:00:30]} 84. Kg2 {[%emt 0:00:30]} Ra2+ {[%emt 0:00:30]} 85. Kg3 {[%emt 0:00:30]} Ra6 {[%emt 0:00:30]} 86. Rd8 {[%emt 0:00:30]} Re6 {[%emt 0:00:30]} 87. Rd3 {[%emt 0:00:30]} Ke2 {[%emt 0:00:30]} 88. Rd5 {[%emt 0:00:30]} Re3+ {[%emt 0:00:30]} 89. Kg2 {[%emt 0:00:30]} Re6 {[%emt 0:00:30]} 90. Rd7 {[%emt 0:00:30]} Ke1 {[%emt 0:00:30]} 91. Rf7 {[%emt 0:00:30]} Re2+ {[%emt 0:00:30]} 92. Kg3 {[%emt 0:00:30]} Re6 {[%emt 0:00:30]} 93. Kg2 {[%emt 0:00:30]} 1/2-1/2

[Event "Chessable English Womens-ch 2022"]
[Site "Kenilwoth"]
[Date "2022.05.20"]
[Round "4.2"]
[White "Pert, Nina"]
[Black "Yao, Lan"]
[Result "0-1"]
[ECO "B47"]
[WhiteElo "1620"]
[BlackElo "2276"]
[Annotator "TA"]
[PlyCount "88"]
[EventDate "2022.05.18"]
[EventType "swiss"]
[EventCountry "ENG"]
[SourceTitle "playchess.com"]
[Source "ChessBase"]
[SourceQuality "1"]
[TimeControl "5400+30"]

{[%evp 14,88,44,9,36,26,41,0,36,-28,-30,-17,-22,-31,-7,-11,-23,-33,-20,-79,-81,-152,-66,-67,-64,-76,-71,-70,-83,-97,-83,-100,-76,-105,-87,-75,-91,-161,-179,-169,-165,-166,-134,-240,-214,-424,-442,-406,-302,-306,-302,-364,-319,-488,-417,-839,-776,-29989,-664,-613,-284,-256,-217,-29986,-29987,-29988,-29988,-29988,-29989,-29992,-29993,-29996,-29996,-29997,-29998,-29998,-29999]} 1. e4 {[%emt 0:00:03]} c5 {[%emt 0:00:06]} 2. Nf3 {[%emt 0:00:05]} e6 {[%emt 0:00:04]} 3. Nc3 {[%emt 0:00:08]} Nc6 {[%emt 0:00:12]} 4. d4 {[%emt 0:00:11]} cxd4 {[%emt 0:00:06]} 5. Nxd4 {[%emt 0:00:08]} Qc7 {[%emt 0:00:04]} 6. g3 {[%emt 0:00:30]} a6 {[%emt 0:00:18]} 7. Bg2 {[%emt 0:00:31]} Nf6 {[%emt 0:00:09]} 8. O-O {[%emt 0:00:54]} h5 {[%emt 0:00:35] 8...Nxd4 is becoming the main line. B47: Sicilian: Taimanov: 5 Nc3 Qc7 6 f4, 6 g3 and 6 Be2.} 9. h3 {[%emt 0:02:24]} Bc5 {[%emt 0:00:17]} 10. Nxc6 {[%emt 0:00:19]} bxc6 {[%emt 0:00:08] The position is equal.} 11. e5 {[%emt 0:02:59]} (11. Bf4 $14 e5 12. Bg5) 11... Qxe5 $11 {[%emt 0:06:27]} 12. Bf4 {[%emt 0:01:10]} Qd4 {[%emt 0:05:37]} 13. Qe2 {[%emt 0:02:02] [#]} Qb4 $146 {[%emt 0:06:28]} ({Predecessor:} 13... Be7 14. Be5 Qa7 15. Rfd1 d5 16. Na4 Kf8 17. c4 Nd7 18. Bc3 Qb8 19. h4 Nc5 20. Nxc5 Bxc5 {1-0 (35) Arjun,K (2445)-Groetzbach,J (2250) Karlsruhe 2019}) 14. a3 {[%emt 0:06:12]} Qb7 {[%emt 0:00:54]} ({Resist} 14... Qxb2 15. Qc4 (15. Na4 Qd4 $16) 15... Be7 16. Bxc6 $1 dxc6 17. Rab1 Qxa3 18. Qxc6+ Nd7 19. Rb3 $16) 15. Rad1 {[%emt 0:02:54]} d5 {[%emt 0:07:35]} (15... Qxb2 $2 16. Na4 Qb5 17. Qxb5 axb5 18. Nxc5 $18) 16. Bg5 {[%emt 0:05:36]} (16. Na4 $11 {remains equal.} Ba7 17. Qe5) 16... Be7 $17 {[%emt 0:02:18]} ({Much less strong is} 16... Qxb2 17. Na4 Qxa3 18. Ra1 Qxg3 19. Bxf6 gxf6 20. Nxc5 $14) 17. Rfe1 {[%emt 0:01:26]} (17. Rb1 $142) 17... O-O {[%emt 0:04:40]} ({Black should try} 17... Qxb2 $17 18. Rd3 Qb6) 18. b3 $15 {[%emt 0:05:01]} Qc7 {[%emt 0:06:17]} 19. Qe3 {[%emt 0:12:21]} Nh7 {[%emt 0:09:53]} 20. Bxe7 {[%emt 0:01:55]} Qxe7 {[%emt 0:00:04]} 21. Rd4 {[%emt 0:02:54]} Re8 {[%emt 0:02:21]} 22. Rh4 {[%emt 0:05:21]} g6 {[%emt 0:01:24]} 23. Qe5 {[%emt 0:12:06]} f6 {[%emt 0:05:34]} 24. Qe3 {[%emt 0:02:45]} e5 $36 {[%emt 0:02:45][%mdl 2048] Keeping White busy.} 25. Nxd5 {[%emt 0:01:16]} cxd5 $19 {[%emt 0:00:11]} 26. Bxd5+ {[%emt 0:00:05]} Be6 {[%emt 0:00:04]} 27. Bxa8 {[%emt 0:00:03]} Rxa8 {[%emt 0:00:04][%cal Be8a8,Ba8d8,Bd8d7][%mdl 32]} 28. Qe4 {[%emt 0:00:15]} (28. Kh2 $17) 28... Qe8 {[%emt 0:00:56] And now ...Ng5 would win.} 29. Qg2 $2 {[%emt 0:06:42]} (29. Qe2 {keeps fighting.}) 29... Rd8 {[%emt 0:02:07] Threatens to win with ...Ng5.} 30. f4 {[%emt 0:05:17] Against Ng5} Bd5 {[%emt 0:02:42]} 31. Qe2 {[%emt 0:01:09]} e4 {[%emt 0:00:46]} 32. Rd1 {[%emt 0:04:43]} Rd7 {[%emt 0:09:06] Hoping for ...e3.} 33. c4 {[%emt 0:01:33]} (33. Kf1 $142) 33... Bc6 {[%emt 0:01:06] aiming for ...Rxd1+.} 34. g4 {[%emt 0:01:35]} (34. Rxd7 $142 Qxd7 35. Kf2) 34... g5 {[%emt 0:02:08] White must now prevent ...Rxd1+.} 35. fxg5 {[%emt 0:00:44]} Nxg5 {[%emt 0:00:09]} (35... Rxd1+ $142 36. Qxd1 e3 37. Kf1 Qe4 38. Qd8+ Nf8 39. Ke1 Qh1+ 40. Ke2 Qf3+ 41. Kd3 e2+ 42. Kd2 Qf2 43. Qd5+ Bxd5 44. Kd3 {[#]} e1=Q $1 45. cxd5 Qfd2+ 46. Kc4 Qc3#) 36. Rxh5 {[%emt 0:00:39]} Qe5 {[%emt 0:08:43]} (36... Rxd1+ $142 37. Qxd1 Qb8 38. Rxg5+ fxg5) 37. Rxd7 {[%emt 0:02:48]} Bxd7 {[%emt 0:01:06] The board is on fire.} 38. Kg2 $2 {[%emt 0:01:11]} (38. Qe3 $19) 38... e3 {[%emt 0:02:42] Black mates.} 39. Kf1 {[%emt 0:02:57]} Bc6 {[%emt 0:01:56][%cal Bd7c6,Bc6e4,Be4d3][%mdl 32]} 40. Rxg5+ {[%emt 0:02:22]} fxg5 {[%emt 0:00:58]} 41. Qc2 {[%emt 0:02:26]} Be4 {[%emt 0:01:59]} 42. Qa2 {[%emt 0:01:03]} Qf4+ {[%emt 0:01:50]} 43. Kg1 {[%emt 0:00:13]} Qg3+ {[%emt 0:00:07]} 44. Kf1 {[%emt 0:00:08]} Bd3+ {[%emt 0:00:07] Weighted Error Value: White=0.58/Black=0.44} 0-1

[Event "Chessable English Womens-ch 2022"]
[Site "Kenilwoth"]
[Date "2022.05.20"]
[Round "4.3"]
[White "Oh, Julie"]
[Black "Catabay, Mae Katelyn Rose"]
[Result "0-1"]
[ECO "B23"]
[WhiteElo "1373"]
[BlackElo "1321"]
[Annotator "NA COMBH"]
[PlyCount "86"]
[EventDate "2022.05.18"]
[EventType "swiss"]
[EventCountry "ENG"]
[SourceTitle "playchess.com"]
[Source "ChessBase"]
[SourceQuality "1"]
[TimeControl "5400+30"]

1. e4 {[%emt 0:00:04]} c5 {[%emt 0:00:10]} 2. Nc3 {[%emt 0:00:19]} Nc6 {[%emt 0:00:31]} 3. f4 {[%emt 0:00:37]} e6 {[%emt 0:00:33]} 4. Nf3 {[%emt 0:00:53]} d5 {[%emt 0:01:36]} 5. e5 {[%emt 0:01:57]} Bd7 {[%emt 0:01:33]} 6. d3 {[%emt 0:03:12]} Nge7 {[%emt 0:03:56]} 7. Be2 {[%emt 0:06:32]} Nf5 {[%emt 0:05:03]} 8. O-O {[%emt 0:05:06]} Be7 {[%emt 0:06:09]} 9. Qe1 {[%emt 0:17:02]} Rc8 {[%emt 0:06:03]} 10. Bd1 {[%emt 0:05:29]} O-O {[%emt 0:15:02]} 11. Ne2 {[%emt 0:03:56]} b5 {[%emt 0:08:39]} 12. Ng3 {[%emt 0:03:48]} b4 {[%emt 0:10:16]} 13. Nxf5 {[%emt 0:09:51]} exf5 {[%emt 0:00:32]} 14. Qg3 {[%emt 0:02:50]} h6 {[%emt 0:11:11]} 15. Bd2 {[%emt 0:12:25]} Be6 {[%emt 0:07:24]} 16. Be1 {[%emt 0:11:47]} c4 {[%emt 0:07:40]} 17. Be2 {[%emt 0:03:08]} Bc5+ {[%emt 0:04:58]} 18. Kh1 {[%emt 0:02:47]} a5 {[%emt 0:01:28]} 19. Qh3 {[%emt 0:01:07]} Nd4 {[%emt 0:03:51]} 20. Nxd4 {[%emt 0:01:57]} Bxd4 {[%emt 0:00:35]} 21. c3 {[%emt 0:01:02]} bxc3 {[%emt 0:01:52]} 22. bxc3 {[%emt 0:01:31]} cxd3 {[%emt 0:01:09]} 23. cxd4 {[%emt 0:01:57]} dxe2 {[%emt 0:00:16]} 24. Rf2 {[%emt 0:00:53]} Qb6 {[%emt 0:00:42]} 25. Qd3 {[%emt 0:01:23]} Rc4 {[%emt 0:00:28]} 26. Rxe2 {[%emt 0:01:09]} Rfc8 {[%emt 0:00:43]} 27. Rd2 {[%emt 0:00:36]} Rc3 {[%emt 0:00:30]} 28. Qe2 {[%emt 0:00:23]} Qc6 {[%emt 0:00:46]} 29. Rdd1 {[%emt 0:00:34]} Rc2 {[%emt 0:00:19]} 30. Qd3 {[%emt 0:00:35]} a4 {[%emt 0:00:34]} 31. a3 {[%emt 0:00:30]} Qc4 {[%emt 0:00:22]} 32. Qxc4 {[%emt 0:00:23]} R8xc4 {[%emt 0:00:06]} 33. Bb4 {[%emt 0:00:17]} Rf2 {[%emt 0:00:32]} 34. g3 {[%emt 0:00:58]} Rcc2 {[%emt 0:00:10]} 35. Rac1 {[%emt 0:00:19]} Rxh2+ {[%emt 0:00:10]} 36. Kg1 {[%emt 0:00:11]} Rcg2+ {[%emt 0:00:09]} 37. Kf1 {[%emt 0:00:14]} Rxg3 {[%emt 0:00:11]} 38. Rc5 {[%emt 0:00:29]} g5 {[%emt 0:00:43]} 39. fxg5 {[%emt 0:01:05]} hxg5 {[%emt 0:00:07]} 40. Ra5 {[%emt 0:00:16]} f4 {[%emt 0:00:20]} 41. Ra8+ {[%emt 0:00:33]} Kh7 {[%emt 0:00:11]} 42. Rc1 {[%emt 0:00:20]} Bh3+ {[%emt 0:00:09]} 43. Ke1 {[%emt 0:00:25]} Rg1# {[%emt 0:00:08]} 0-1

[Event "Chessable English Womens-ch 2022"]
[Site "Kenilwoth"]
[Date "2022.05.20"]
[Round "4.4"]
[White "Milewska, Agnieszka"]
[Black "Sengenberger, Sara"]
[Result "1-0"]
[ECO "D40"]
[WhiteElo "1677"]
[BlackElo "1435"]
[Annotator "NA COMBH"]
[PlyCount "103"]
[EventDate "2022.05.18"]
[EventType "swiss"]
[EventCountry "ENG"]
[SourceTitle "playchess.com"]
[Source "ChessBase"]
[SourceQuality "1"]
[TimeControl "5400+30"]

1. d4 {[%emt 0:00:01]} Nf6 {[%emt 0:00:11]} 2. c4 {[%emt 0:00:01]} e6 {[%emt 0:00:10]} 3. e3 {[%emt 0:00:02]} c5 {[%emt 0:00:41]} 4. Nf3 {[%emt 0:00:11]} Nc6 {[%emt 0:01:13]} 5. Nc3 {[%emt 0:00:14]} d5 {[%emt 0:01:02]} 6. dxc5 {[%emt 0:01:10]} Bxc5 {[%emt 0:00:23]} 7. cxd5 {[%emt 0:00:06]} Nxd5 {[%emt 0:00:20]} 8. Bb5 {[%emt 0:01:02]} O-O {[%emt 0:02:21]} 9. Bxc6 {[%emt 0:00:40]} Nxc3 {[%emt 0:05:33]} 10. Qxd8 {[%emt 0:00:11]} Rxd8 {[%emt 0:00:14]} 11. bxc3 {[%emt 0:01:25]} bxc6 {[%emt 0:00:22]} 12. O-O {[%emt 0:00:16]} Ba6 {[%emt 0:00:40]} 13. Re1 {[%emt 0:01:23]} Rab8 {[%emt 0:08:08]} 14. Nd4 {[%emt 0:00:25]} Rd6 {[%emt 0:01:52]} 15. Nb3 {[%emt 0:01:46]} Bb6 {[%emt 0:00:40]} 16. Ba3 {[%emt 0:00:04]} Rdd8 {[%emt 0:03:28]} 17. Red1 {[%emt 0:02:07]} Rxd1+ {[%emt 0:09:01]} 18. Rxd1 {[%emt 0:00:03]} Rd8 {[%emt 0:01:02]} 19. Rxd8+ {[%emt 0:00:17]} Bxd8 {[%emt 0:00:04]} 20. Nd4 {[%emt 0:00:54]} Ba5 {[%emt 0:08:11]} 21. Bb4 {[%emt 0:01:48]} Bxb4 {[%emt 0:00:14]} 22. cxb4 {[%emt 0:00:02]} Bb5 {[%emt 0:01:21]} 23. f4 {[%emt 0:00:37]} Ba4 {[%emt 0:02:03]} 24. Kf2 {[%emt 0:00:42]} Kf8 {[%emt 0:00:29]} 25. Ke2 {[%emt 0:00:19]} Ke7 {[%emt 0:00:30]} 26. Kd3 {[%emt 0:00:53]} Kd6 {[%emt 0:00:42]} 27. g4 {[%emt 0:01:09]} g6 {[%emt 0:01:23]} 28. g5 {[%emt 0:02:13]} c5 {[%emt 0:06:09]} 29. bxc5+ {[%emt 0:01:15]} Kxc5 {[%emt 0:00:13]} 30. a3 {[%emt 0:03:57]} Kd5 {[%emt 0:03:25]} 31. e4+ {[%emt 0:00:21]} Kc5 {[%emt 0:00:45]} 32. Nf3 {[%emt 0:01:59]} Bb5+ {[%emt 0:07:17]} 33. Kc3 {[%emt 0:00:32]} Bc6 {[%emt 0:01:21]} 34. Nd2 {[%emt 0:05:32]} Bb7 {[%emt 0:01:52]} 35. Nb3+ {[%emt 0:00:59]} Kd6 {[%emt 0:02:39]} 36. Kd4 {[%emt 0:00:26]} Bc6 {[%emt 0:01:50]} 37. e5+ {[%emt 0:00:26]} Kc7 {[%emt 0:01:12]} 38. Kc5 {[%emt 0:00:14]} a6 {[%emt 0:01:13]} 39. Nd4 {[%emt 0:01:12]} Bg2 {[%emt 0:00:56]} 40. a4 {[%emt 0:00:20]} Be4 {[%emt 0:00:45]} 41. a5 {[%emt 0:00:30]} Bd5 {[%emt 0:01:17]} 42. Nc2 {[%emt 0:00:51]} Bg2 {[%emt 0:00:36]} 43. Ne3 {[%emt 0:00:26]} Bf3 {[%emt 0:00:24]} 44. Nc4 {[%emt 0:00:29]} Bd5 {[%emt 0:01:29]} 45. Nd6 {[%emt 0:00:15]} Bf3 {[%emt 0:01:06]} 46. Nxf7 {[%emt 0:00:12]} Be4 {[%emt 0:01:22]} 47. Nh6 {[%emt 0:00:08]} Bf3 {[%emt 0:00:39]} 48. Ng8 {[%emt 0:00:04]} Be4 {[%emt 0:01:22]} 49. Nf6 {[%emt 0:00:02]} Bc2 {[%emt 0:00:14]} 50. Nxh7 {[%emt 0:00:13]} Bf5 {[%emt 0:00:32]} 51. Nf8 {[%emt 0:00:29]} Kd8 {[%emt 0:02:04]} 52. Kd6 {[%emt 0:00:12]} 1-0